fUST/lending_fUST_20260418
["ID","MTS","AMOUNT","RATE_DAILY","PERIOD"]
[420661489,1776441623358,704.0,0.00021792,120]
[420661490,1776441624681,704.0,0.00022881,120]
[420661491,1776441626094,704.0,0.00024025,120]
[420661492,1776441650588,609.0,0.00020654,120]
[420661493,1776441651906,609.0,0.00021686,120]
[420661494,1776441653493,609.0,0.0002277,120]
[420661495,1776441655051,609.0,0.00023909,120]
[420661496,1776441656005,4500.0,0.00016438,120]
[420661497,1776441656253,4556.89281405,0.00016712,120]
[420661498,1776441662731,-1915.36657013,6.297e-05,2]
[420661499,1776441691670,200.0,0.00019117,120]
[420661500,1776441698071,268.0,0.0002463,120]
[420661501,1776441783467,177.0,0.0002463,120]
[420661502,1776441810749,200.0,0.00023994,120]
[420661503,1776441871732,200.0,0.00023949,120]
[420661507,1776441910529,422.0,0.00021811,120]
[420661508,1776441911821,422.0,0.00022901,120]
[420661509,1776441913185,422.0,0.00024046,120]
[420661510,1776441936459,364.0,0.00024658,120]
[420661511,1776441939331,365.0,0.00020662,120]
[420661512,1776441941081,365.0,0.00021695,120]
[420661513,1776441943245,365.0,0.0002278,120]
[420661514,1776441944905,365.0,0.00023919,120]
[420661525,1776441991571,200.0,0.00022882,120]
[420661533,1776442217541,254.0,0.00021796,120]
[420661534,1776442219208,254.0,0.00022886,120]
[420661535,1776442220758,254.0,0.0002403,120]
[420661553,1776442232520,-223.96082055,5.765e-05,2]
[420661555,1776442232529,-199.96000774,5.765e-05,2]
[420661557,1776442232540,-303.03999226,5.765e-05,2]
[420661559,1776442232550,-4917.50746552,5.884e-05,2]
[420661563,1776442232572,-82.49253448,5.884e-05,2]
[420661565,1776442232582,-225.43351982,5.943e-05,2]
[420661567,1776442232591,-500.54196291,6.659e-05,2]
[420661569,1776442232600,-300.0,6.659e-05,2]
[420661571,1776442232610,-300.0,6.659e-05,2]
[420661573,1776442232619,-8054.73717054,6.66e-05,2]
[420661575,1776442232631,-480.82937926,6.66e-05,2]
[420661699,1776442233726,219.0,0.00020652,120]
[420661714,1776442235007,219.0,0.00021685,120]
[420661715,1776442236338,219.0,0.00022769,120]
[420661716,1776442237617,219.0,0.00023907,120]
[420661738,1776442238995,-5000.0,6.593e-05,2]
[420661739,1776442239005,-94.90716953,6.66e-05,2]
[420661740,1776442239015,-764.74654643,6.744e-05,2]
[420661741,1776442239212,-737.26,6.744e-05,2]
[420661746,1776442241295,-469.07870949,6.744e-05,2]
[420661779,1776442243982,-1845.78728504,6.744e-05,2]
[420661780,1776442243991,-500.0,6.859e-05,2]
[420661781,1776442244001,-486.2427849,6.859e-05,2]
[420661782,1776442244010,-500.0,6.859e-05,2]
[420661783,1776442244020,-500.0,6.859e-05,2]
[420661784,1776442244029,-2841.11469317,6.86e-05,2]
[420661806,1776442246886,-5270.09999996,6.86e-05,2]
[420661808,1776442246945,-21044.73466792,6.86e-05,2]
[420661809,1776442291761,200.0,0.00022245,120]
[420661810,1776442351204,200.0,0.00022761,120]
[420661811,1776442410745,200.0,0.00022211,120]
[420661813,1776442471196,200.0,0.00021577,120]
[420661815,1776442511187,169.0,0.00021795,120]
[420661818,1776442512771,169.0,0.00022885,120]
[420661819,1776442514077,169.0,0.00024029,120]
[420661820,1776442530752,200.0,0.00022663,120]
[420661821,1776442544589,181.0,0.00020629,120]
[420661822,1776442546076,181.0,0.0002166,120]
[420661823,1776442547557,181.0,0.00022743,120]
[420661824,1776442549244,181.0,0.0002388,120]
[420661825,1776442554520,980.28,0.00024649,120]
[420661826,1776442563581,654.0,0.00024628,120]
[420661828,1776442590086,500.0,0.00024658,120]
[420661829,1776442591215,500.0,0.00024658,120]
[420661830,1776442592193,500.0,0.00024658,120]
[420661831,1776442593666,500.0,0.00024658,120]
[420661832,1776442595084,500.0,0.00024658,120]
[420661833,1776442596141,500.0,0.00024658,120]
[420661834,1776442597538,500.0,0.00024658,120]
[420661835,1776442598700,500.0,0.00024658,120]
[420661836,1776442599978,500.0,0.00024658,120]
[420661837,1776442600750,500.0,0.00024658,120]
[420661838,1776442602402,500.0,0.00024658,120]
[420661839,1776442603329,500.0,0.00024658,120]
[420661840,1776442604295,500.0,0.00024658,120]
[420661841,1776442605713,500.0,0.00024658,120]
[420661842,1776442606782,500.0,0.00024658,120]
[420661843,1776442608075,500.0,0.00024658,120]
[420661844,1776442609146,500.0,0.00024658,120]
[420661845,1776442620765,500.0,0.00024658,120]
[420661846,1776442621729,500.0,0.00024658,120]
[420661847,1776442623249,500.0,0.00024658,120]
[420661848,1776442624165,500.0,0.00024658,120]
[420661850,1776442653371,323.0,0.00024627,120]
[420661851,1776442665049,1211.3306815,0.00024658,120]
[420661853,1776442724855,25038.48836705,0.00024,120]
[420661855,1776442771874,200.0,0.00024567,120]
[420661856,1776442802367,699.0,0.00024627,120]
[420661859,1776442810540,170.0,0.00023183,120]
[420661860,1776442811707,170.0,0.00024343,120]
[420661861,1776442832406,182.0,0.00021937,120]
[420661862,1776442833697,182.0,0.00023034,120]
[420661863,1776442835060,182.0,0.00024186,120]
[420661865,1776442892007,1294.0,0.00024627,120]
[420661867,1776442944995,170.0,0.00021949,120]
[420661868,1776442946267,170.0,0.00023047,120]
[420661869,1776442947542,170.0,0.00024199,120]
[420661870,1776442951180,200.0,0.00024043,120]
[420661873,1776442995110,770.0,0.00024627,120]
[420661875,1776443071526,200.0,0.00024568,120]
[420661876,1776443088559,255.0,0.00024627,120]
[420661879,1776443128666,185.0,0.0002204,120]
[420661880,1776443131670,200.0,0.00024321,120]
[420661883,1776443177597,168.0,0.00024627,120]
[420661884,1776443179539,942.0,0.00024658,120]
[420661885,1776443190970,200.0,0.00023235,120]
[420661887,1776443251378,200.0,0.00023367,120]
[420661888,1776443252117,160.0,0.00024658,120]
[420661889,1776443265546,1734.97,0.00024633,120]
[420661925,1776443371527,200.0,0.00023421,120]
[420661937,1776443431424,200.0,0.00022258,120]
[420661953,1776443431791,-4767.0047229,5.769e-05,2]
[420661971,1776443431958,-232.9952771,5.769e-05,2]
[420661973,1776443431968,-2027.86181298,5.827e-05,2]
[420661975,1776443431980,-2972.13818702,5.827e-05,2]
[420661977,1776443431989,-504.0,5.827e-05,2]
[420661979,1776443431999,-549.17607925,5.886e-05,2]
[420661981,1776443432008,-910.0,6.033e-05,2]
[420661983,1776443432017,-294.0,6.034e-05,2]
[420661985,1776443432026,-300.0,6.034e-05,2]
[420661987,1776443432036,-300.0,6.034e-05,2]
[420661989,1776443432045,-4367.36489983,6.035e-05,2]
[420661991,1776443432054,-8500.85927647,6.042e-05,2]
[420661993,1776443432063,-224.15848054,6.109e-05,2]
[420661995,1776443432072,-420.0,6.637e-05,2]
[420661997,1776443432081,-500.0,6.659e-05,2]
[420661998,1776443432090,-500.0,6.659e-05,2]
[420662000,1776443432099,-500.0,6.659e-05,2]
[420662002,1776443432109,-232.50836171,6.659e-05,2]
[420662004,1776443432118,-500.0,6.659e-05,2]
[420662006,1776443432127,-500.0,6.659e-05,2]
[420662008,1776443432137,-500.0,6.659e-05,2]
[420662010,1776443432146,-500.0,6.659e-05,2]
[420662012,1776443432155,-500.0,6.659e-05,2]
[420662014,1776443432164,-500.0,6.659e-05,2]
[420662016,1776443432173,-500.0,6.659e-05,2]
[420662018,1776443432182,-500.0,6.659e-05,2]
[420662020,1776443432191,-500.0,6.659e-05,2]
[420662022,1776443432201,-220.69364277,6.659e-05,2]
[420662024,1776443432210,-500.0,6.659e-05,2]
[420662025,1776443432219,-500.0,6.659e-05,2]
[420662027,1776443432228,-500.0,6.659e-05,2]
[420662029,1776443432238,-351.51377362,6.659e-05,2]
[420662031,1776443432247,-500.0,6.659e-05,2]
[420662033,1776443432256,-13589.95646327,6.66e-05,2]
[420662062,1776443445249,-4202.86713766,5.654e-05,2]
[420662088,1776443446407,-797.13286234,5.654e-05,2]
[420662089,1776443446416,-458.20547818,5.711e-05,2]
[420662090,1776443446602,-3744.66165948,6.66e-05,2]
[420662091,1776443446614,-5244.59999989,6.66e-05,2]
[420662092,1776443446644,-351.9388196,6.66e-05,2]
[420662093,1776443446655,-446.0,6.66e-05,2]
[420662099,1776443492258,200.0,0.00012701,120]
[420662100,1776443514141,72820.0,0.00024657,120]
[420662102,1776443551474,200.0,0.00018685,120]
[420662104,1776443611081,200.0,0.00020222,120]
[420662106,1776443671007,200.0,0.000223,120]
[420662107,1776443705050,168.0,0.0002371,120]
[420662108,1776443731205,200.0,0.00024048,120]
[420662109,1776443792108,200.0,0.00023523,120]
[420662110,1776443826689,1024.73909623,0.000246,120]
[420662112,1776443877966,1199.0,0.00024657,120]
[420662113,1776443880351,1199.0,0.00024657,120]
[420662114,1776443910962,200.0,0.00023911,120]
[420662122,1776444172801,-151.0,6.774e-05,20]
[420662123,1776444174412,-149.0,6.774e-05,20]
[420662126,1776444294614,166.73591,2.656e-05,2]
[420662127,1776444381062,305.47082806,0.00024658,120]
[420662129,1776444514808,5000.0,0.0002465,120]
[420662138,1776444572581,4999.0,0.0002465,120]
[420662140,1776444612943,14999.0,0.0002465,120]
[420662143,1776444632139,-1071.458,5.537e-05,2]
[420662144,1776444632193,-1548.40651717,5.537e-05,2]
[420662161,1776444639290,-734.368,5.537e-05,2]
[420662162,1776444639345,-1645.76748283,5.537e-05,2]
[420662163,1776444639354,-500.0,5.537e-05,2]
[420662164,1776444639364,-220.0865898,5.593e-05,2]
[420662165,1776444639374,-3282.9837236,5.708e-05,2]
[420662166,1776444639386,-1032.30367457,5.708e-05,2]
[420662168,1776444639504,-684.71260183,5.708e-05,2]
[420662170,1776444639514,-243.01616633,5.944e-05,2]
[420662172,1776444639524,-285.5699453,6.179e-05,2]
[420662173,1776444639534,-271.0,6.358e-05,2]
[420662174,1776444639543,-13.92000177,6.358e-05,2]
[420662175,1776444639555,-286.07999823,6.358e-05,2]
[420662176,1776444639564,-285.0,6.358e-05,2]
[420662177,1776444639574,-500.0,6.359e-05,2]
[420662178,1776444639584,-500.0,6.359e-05,2]
[420662179,1776444639592,-500.0,6.359e-05,2]
[420662180,1776444639602,-500.0,6.359e-05,2]
[420662181,1776444639611,-500.0,6.359e-05,2]
[420662182,1776444639621,-500.0,6.359e-05,2]
[420662183,1776444639631,-500.0,6.359e-05,2]
[420662184,1776444639641,-500.0,6.359e-05,2]
[420662185,1776444639651,-500.0,6.359e-05,2]
[420662186,1776444639661,-436.18489906,6.359e-05,2]
[420662187,1776444639671,-500.0,6.359e-05,2]
[420662188,1776444639682,-500.0,6.359e-05,2]
[420662189,1776444639691,-500.0,6.359e-05,2]
[420662190,1776444639701,-500.0,6.359e-05,2]
[420662191,1776444639711,-500.0,6.359e-05,2]
[420662192,1776444639721,-500.0,6.359e-05,2]
[420662193,1776444639730,-500.0,6.359e-05,2]
[420662194,1776444639740,-500.0,6.359e-05,2]
[420662195,1776444639750,-500.0,6.359e-05,2]
[420662196,1776444639760,-170.61746633,6.359e-05,2]
[420662197,1776444639770,-500.0,6.359e-05,2]
[420662198,1776444639779,-500.0,6.359e-05,2]
[420662199,1776444639789,-500.0,6.359e-05,2]
[420662200,1776444639799,-500.0,6.359e-05,2]
[420662201,1776444639809,-459.49699514,6.359e-05,2]
[420662206,1776444640025,-500.0,6.359e-05,2]
[420662207,1776444640035,-500.0,6.359e-05,2]
[420662208,1776444640045,-500.0,6.359e-05,2]
[420662209,1776444640055,-500.0,6.359e-05,2]
[420662210,1776444640064,-500.0,6.359e-05,2]
[420662211,1776444640073,-500.0,6.359e-05,2]
[420662212,1776444640083,-500.0,6.359e-05,2]
[420662213,1776444640093,-500.0,6.359e-05,2]
[420662214,1776444640103,-500.0,6.359e-05,2]
[420662215,1776444640112,-500.0,6.359e-05,2]
[420662216,1776444640122,-400.0,6.359e-05,2]
[420662217,1776444640131,-500.0,6.359e-05,2]
[420662218,1776444640142,-500.0,6.359e-05,2]
[420662219,1776444640151,-6330.60468647,6.36e-05,2]
[420662221,1776444640691,-1071.84988445,6.36e-05,2]
[420662222,1776444640767,-6810.10081707,6.36e-05,2]
[420662244,1776444647779,-304.7,6.296e-05,2]
[420662245,1776444660022,14999.99999999,0.0002465,120]
[420662246,1776444692842,10000.0,0.0002465,120]
[420662247,1776444707059,5000.0,0.0002465,120]
[420662256,1776445029755,857.42,0.00024657,120]
[420662297,1776445243714,-191.590741,5.866e-05,2]
[420662298,1776445247836,221.49176349,0.00019974,120]
[420662299,1776445252068,5037.59269825,0.0002465,120]
[420662327,1776445457023,-4695.312,5.748e-05,2]
[420662329,1776445484290,-304.688,5.748e-05,2]
[420662330,1776445484312,-503.0,5.748e-05,2]
[420662331,1776445484333,-192.312,5.806e-05,2]
[420662332,1776445485848,-1000.0,5.806e-05,2]
[420662333,1776445486819,-1000.0,5.806e-05,2]
[420662334,1776445487237,-1000.0,5.806e-05,2]
[420662335,1776445487631,-657.15601759,5.806e-05,2]
[420662336,1776445512516,-1000.0,5.751e-05,2]
[420662337,1776445514122,-1000.0,5.751e-05,2]
[420662338,1776445514545,-1000.0,5.751e-05,2]
[420662339,1776445514868,-1000.0,5.751e-05,2]
[420662340,1776445515266,-695.31207581,5.751e-05,2]
[420662341,1776445515289,-304.68792419,5.809e-05,2]
[420662342,1776445515680,-1000.0,5.809e-05,2]
[420662343,1776445516026,-1000.0,5.809e-05,2]
[420662344,1776445516442,-1000.0,5.809e-05,2]
[420662345,1776445516859,-1000.0,5.809e-05,2]
[420662346,1776445517268,-695.31207581,5.809e-05,2]
[420662347,1776445517291,-252.77008014,5.866e-05,2]
[420662348,1776445520877,51.91784405,5.866e-05,2]
[420662349,1776445520902,1000.0,5.866e-05,2]
[420662350,1776445520927,1000.0,5.866e-05,2]
[420662351,1776445522515,-1000.0,5.866e-05,2]
[420662352,1776445522623,-1000.0,5.866e-05,2]
[420662353,1776445523082,-948.08215595,5.866e-05,2]
[420662355,1776445543300,51.91784405,5.866e-05,2]
[420662357,1776445574003,-1000.0,5.866e-05,2]
[420662358,1776445575208,-1000.0,5.866e-05,2]
[420662359,1776445576149,-1000.0,5.866e-05,2]
[420662360,1776445577056,-1000.0,5.866e-05,2]
[420662361,1776445585072,-600.0,5.866e-05,2]
[420662364,1776445632625,-300.0,5.479e-05,2]
[420662365,1776445632679,-348.08215595,5.866e-05,2]
[420662366,1776445632707,-351.91784405,5.866e-05,2]
[420662367,1776445633758,-152.08215595,5.866e-05,2]
[420662372,1776445722180,-168.0,5.766e-05,2]
[420662390,1776445832529,-441.70512035,5.766e-05,2]
[420662394,1776445838633,-61.29487965,5.766e-05,2]
[420662395,1776445838643,-1430.55,5.766e-05,2]
[420662396,1776445838652,-252.3405406,5.816e-05,2]
[420662397,1776445838661,-5000.0,5.866e-05,2]
[420662398,1776445838670,-221.49176349,5.925e-05,2]
[420662399,1776445838680,-221.49176349,5.985e-05,2]
[420662400,1776445838689,-221.49176349,5.986e-05,2]
[420662401,1776445838698,-200.0,6.015e-05,2]
[420662402,1776445838707,-221.49176349,6.016e-05,2]
[420662403,1776445838717,-300.0,6.058e-05,2]
[420662404,1776445838726,-168.9517238,6.059e-05,2]
[420662405,1776445838736,-500.0,6.059e-05,2]
[420662406,1776445838745,-500.0,6.059e-05,2]
[420662407,1776445838754,-362.41464701,6.059e-05,2]
[420662408,1776445838764,-500.0,6.059e-05,2]
[420662409,1776445838773,-500.0,6.059e-05,2]
[420662410,1776445838782,-130.62237418,6.059e-05,2]
[420662436,1776445841338,-328.08200355,6.059e-05,2]
[420662437,1776445841347,-500.0,6.059e-05,2]
[420662438,1776445841356,-500.0,6.059e-05,2]
[420662439,1776445841367,-500.0,6.059e-05,2]
[420662440,1776445841376,-500.0,6.059e-05,2]
[420662441,1776445841385,-500.0,6.059e-05,2]
[420662442,1776445841395,-500.0,6.059e-05,2]
[420662443,1776445841405,-500.0,6.059e-05,2]
[420662444,1776445841415,-500.0,6.059e-05,2]
[420662445,1776445841425,-500.0,6.059e-05,2]
[420662447,1776445841435,-500.0,6.059e-05,2]
[420662449,1776445841444,-500.0,6.059e-05,2]
[420662451,1776445841453,-500.0,6.059e-05,2]
[420662453,1776445841462,-417.26778782,6.059e-05,2]
[420662493,1776445846665,-5000.0,5.998e-05,2]
[420662494,1776445846675,-82.73221218,6.059e-05,2]
[420662495,1776445846683,-500.0,6.059e-05,2]
[420662496,1776445846869,-500.0,6.059e-05,2]
[420662497,1776445846879,-631.27987431,6.059e-05,2]
[420662498,1776445846888,-500.0,6.059e-05,2]
[420662499,1776445846897,-607.87351304,6.059e-05,2]
[420662500,1776445846907,-500.0,6.059e-05,2]
[420662501,1776445846916,-499.99999999,6.059e-05,2]
[420662502,1776445846925,-500.0,6.059e-05,2]
[420662503,1776445846934,-500.0,6.059e-05,2]
[420662505,1776445846943,-540.39181488,6.059e-05,2]
[420662506,1776445846953,-500.0,6.059e-05,2]
[420662508,1776445846962,-500.0,6.059e-05,2]
[420662510,1776445846971,-500.0,6.059e-05,2]
[420662512,1776445846980,-500.0,6.059e-05,2]
[420662514,1776445846990,-500.0,6.059e-05,2]
[420662516,1776445846999,-500.0,6.059e-05,2]
[420662517,1776445847009,-500.0,6.059e-05,2]
[420662519,1776445847019,-500.0,6.059e-05,2]
[420662521,1776445847028,-500.0,6.059e-05,2]
[420662523,1776445847037,-500.0,6.059e-05,2]
[420662525,1776445847047,-335.32942934,6.059e-05,2]
[420662527,1776445847057,-500.0,6.059e-05,2]
[420662529,1776445847066,-12712.77658853,6.06e-05,2]
[420662531,1776445847077,-306.67,6.06e-05,2]
[420662595,1776445911964,479.1,0.00024657,120]
[420662600,1776446148351,177.09222186,5.115e-05,30]
[420662601,1776446149484,265.6383328,5.133e-05,30]
[420662602,1776446151967,50000.0,0.00024657,120]
[420662690,1776446449367,501.62,0.00024658,120]
[420662692,1776446486550,500.0,0.00024658,120]
[420662713,1776446833678,191.590741,2.045e-05,2]
[420662802,1776447039723,-5000.0,4.825e-05,2]
[420662803,1776447039733,-265.77676827,4.935e-05,2]
[420662804,1776447039742,-300.0,4.999e-05,2]
[420662805,1776447039752,-975.0,4.999e-05,2]
[420662806,1776447039762,-58279.85105103,5e-05,2]
[420662807,1776447039772,-162.07826419,5e-05,2]
[420662808,1776447039781,-171.1546461,5e-05,2]
[420662809,1776447039791,-500.0,5e-05,2]
[420662810,1776447039801,-500.0,5e-05,2]
[420662811,1776447039810,-459.03109715,5e-05,2]
[420662812,1776447039820,-6369.46458497,5.115e-05,2]
[420662813,1776447039830,-4113.0584841,5.134e-05,2]
[420662814,1776447039840,-693.421635,5.145e-05,2]
[420662815,1776447039850,-643.7704425,5.168e-05,2]
[420662816,1776447039860,-300.0,5.27e-05,2]
[420662817,1776447039870,-300.0,5.27e-05,2]
[420662818,1776447039879,-300.0,5.27e-05,2]
[420662819,1776447039889,-300.0,5.27e-05,2]
[420662821,1776447039899,-300.0,5.27e-05,2]
[420662823,1776447039908,-300.0,5.27e-05,2]
[420662824,1776447039917,-300.0,5.27e-05,2]
[420662825,1776447039927,-300.0,5.27e-05,2]
[420662826,1776447039938,-300.0,5.27e-05,2]
[420662828,1776447039948,-300.0,5.27e-05,2]
[420662830,1776447039957,-300.0,5.27e-05,2]
[420662832,1776447039966,-300.0,5.27e-05,2]
[420662833,1776447039975,-300.0,5.27e-05,2]
[420662834,1776447039984,-300.0,5.27e-05,2]
[420662835,1776447039994,-300.0,5.27e-05,2]
[420662836,1776447040003,-13906.30936185,5.315e-05,2]
[420662838,1776447040013,-2089.77525724,5.362e-05,2]
[420662840,1776447040022,-693.421635,5.362e-05,2]
[420662841,1776447040032,-173.8352637,5.372e-05,2]
[420662843,1776447040041,-500.0,5.414e-05,2]
[420662845,1776447040051,-500.0,5.414e-05,2]
[420662847,1776447040060,-584.73060054,5.414e-05,2]
[420662849,1776447040070,-500.0,5.414e-05,2]
[420662850,1776447040080,-500.0,5.414e-05,2]
[420662852,1776447040090,-500.0,5.414e-05,2]
[420662853,1776447040099,-500.0,5.414e-05,2]
[420662854,1776447040109,-500.0,5.414e-05,2]
[420662855,1776447040118,-600.0,5.414e-05,2]
[420662856,1776447040128,-15421.27186477,5.415e-05,2]
[420662857,1776447040137,-420.0,5.499e-05,2]
[420662858,1776447040146,-693.421635,5.579e-05,2]
[420662859,1776447040156,-151.0,5.581e-05,2]
[420662860,1776447040166,-228362.23385962,5.695e-05,2]
[420662861,1776447040175,-693.421635,5.795e-05,2]
[420662862,1776447040185,-500.0,5.799e-05,2]
[420662863,1776447040195,-278.88567387,5.8e-05,2]
[420662864,1776447040204,-830.57307961,5.8e-05,2]
[420662865,1776447040214,-554.72937674,5.8e-05,2]
[420662867,1776447040223,-500.0,5.859e-05,2]
[420662868,1776447040233,-500.0,5.933e-05,2]
[420662869,1776447040242,-500.0,5.933e-05,2]
[420662870,1776447040252,-500.0,5.933e-05,2]
[420662871,1776447040261,-500.0,5.933e-05,2]
[420662872,1776447040270,-693.421635,6.012e-05,2]
[420662873,1776447040280,-587.0,6.049e-05,2]
[420662874,1776447040289,-2089.7752572,6.076e-05,2]
[420662875,1776447040299,-600.0,6.077e-05,2]
[420662876,1776447040308,-362.0446145,6.191e-05,2]
[420662877,1776447040318,-173.8854134,6.22e-05,2]
[420662878,1776447040326,-693.421635,6.228e-05,2]
[420662879,1776447040336,-210.27973076,6.421e-05,2]
[420662880,1776447040345,-469.0423266,6.421e-05,2]
[420662882,1776447040354,-537.6845,6.421e-05,2]
[420662884,1776447040364,-537.6845,6.421e-05,2]
[420662885,1776447040373,-151.0,6.421e-05,2]
[420662887,1776447040383,-1957.856,6.421e-05,2]
[420662888,1776447040392,-2150.738,6.421e-05,2]
[420662890,1776447040401,-557.5788265,6.476e-05,2]
[420662892,1776447040411,-1485.40188292,6.476e-05,2]
[420662894,1776447040420,-812.83774384,6.481e-05,2]
[420662895,1776447040430,-1000.0,6.481e-05,2]
[420662896,1776447040441,-257.10670968,6.481e-05,2]
[420662898,1776447040450,-578.20924308,6.531e-05,2]
[420662899,1776447040459,-599.60298507,6.586e-05,2]
[420662900,1776447040468,-621.78829552,6.641e-05,2]
[420662901,1776447040477,-823.0,6.654e-05,2]
[420662902,1776447040487,-720.0,6.685e-05,2]
[420662906,1776447040677,-644.79446245,6.696e-05,2]
[420662907,1776447040688,-2089.7752572,6.791e-05,2]
[420662908,1776447040697,-172.08,6.821e-05,2]
[420662909,1776447040706,-1980.13544345,6.86e-05,2]
[420662910,1776447040715,-355.87483534,6.882e-05,2]
[420662912,1776447040724,-179.83725255,6.888e-05,2]
[420662913,1776447040733,-718.62966117,6.888e-05,2]
[420662915,1776447040743,-313.61658655,6.935e-05,2]
[420662916,1776447040752,-557.5788265,6.969e-05,2]
[420662917,1776447040761,-2230.315306,6.969e-05,2]
[420662918,1776447040770,-325.155503,7.016e-05,2]
[420662919,1776447040780,-1500.0,7.028e-05,2]
[420662920,1776447040790,-300.0,7.075e-05,2]
[420662921,1776447040800,-1422.07584203,7.166e-05,2]
[420662922,1776447040809,-1152.0,7.319e-05,2]
[420662923,1776447040819,-864.0,7.353e-05,2]
[420662924,1776447040828,-2089.7752572,7.505e-05,2]
[420662925,1776447040838,-578.20924308,7.517e-05,2]
[420662926,1776447040848,-2312.83697232,7.517e-05,2]
[420662927,1776447040857,-150.903,7.568e-05,2]
[420662928,1776447040866,-150.164,7.568e-05,2]
[420662929,1776447040875,-2000.0,7.576e-05,2]
[420662931,1776447040885,-1408.0,7.582e-05,2]
[420662932,1776447040894,-253.081,7.582e-05,2]
[420662933,1776447040903,-441.0,7.582e-05,2]
[420662934,1776447040912,-184.0,7.582e-05,2]
[420662935,1776447040922,-184.0,7.582e-05,2]
[420662936,1776447040931,-23748.33583718,7.6e-05,2]
[420662937,1776447040941,-3884.95,7.84e-05,2]
[420662938,1776447040951,-325.610698,7.864e-05,2]
[420662939,1776447040960,-160.0,7.892e-05,2]
[420662940,1776447040969,-500.0,7.9e-05,2]
[420662941,1776447040979,-1613.0,8.051e-05,2]
[420662942,1776447040988,-485.23254989,8.065e-05,2]
[420662943,1776447040998,-2398.4119403,8.065e-05,2]
[420662944,1776447041014,-1000.0,8.089e-05,2]
[420662945,1776447041024,-500.0,8.1e-05,2]
[420662946,1776447041033,-2500.0,8.124e-05,2]
[420662947,1776447041043,-340.2602529,8.137e-05,2]
[420662948,1776447041053,-2074.70424116,8.2e-05,2]
[420662949,1776447041062,-151.5,8.219e-05,2]
[420662950,1776447041071,-151.5,8.219e-05,2]
[420662951,1776447041081,-192.40120149,8.219e-05,2]
[420662952,1776447041091,-299.9230049,8.219e-05,2]
[420662953,1776447041100,-253.77506632,8.219e-05,2]
[420662954,1776447041109,-500.0,8.219e-05,2]
[420662955,1776447041118,-500.0,8.219e-05,2]
[420662956,1776447041127,-500.0,8.219e-05,2]
[420662957,1776447041136,-500.0,8.219e-05,2]
[420662958,1776447041146,-500.0,8.219e-05,2]
[420662959,1776447041156,-500.0,8.219e-05,2]
[420662960,1776447041166,-500.0,8.219e-05,2]
[420662961,1776447041177,-500.0,8.219e-05,2]
[420662962,1776447041187,-500.0,8.219e-05,2]
[420662963,1776447041196,-618.20247179,8.219e-05,2]
[420662964,1776447041205,-565.95825728,8.219e-05,2]
[420662965,1776447041215,-500.0,8.219e-05,2]
[420662966,1776447041224,-500.0,8.219e-05,2]
[420662967,1776447041233,-500.0,8.219e-05,2]
[420662968,1776447041242,-500.0,8.219e-05,2]
[420662969,1776447041251,-500.0,8.219e-05,2]
[420662970,1776447041261,-500.0,8.219e-05,2]
[420662971,1776447041270,-500.0,8.219e-05,2]
[420662972,1776447041280,-500.0,8.219e-05,2]
[420662973,1776447041289,-500.0,8.219e-05,2]
[420662974,1776447041299,-500.0,8.219e-05,2]
[420662975,1776447041309,-190.61303865,8.219e-05,2]
[420662976,1776447041318,-500.0,8.219e-05,2]
[420662977,1776447041328,-500.0,8.219e-05,2]
[420662978,1776447041337,-500.0,8.219e-05,2]
[420662979,1776447041347,-248.60296465,8.219e-05,2]
[420662980,1776447041356,-500.0,8.219e-05,2]
[420662981,1776447041365,-500.0,8.219e-05,2]
[420662982,1776447041375,-151.5,8.219e-05,2]
[420662983,1776447041384,-258.32777933,8.219e-05,2]